fUSD/lending_fUSD_20250202
["ID","MTS","AMOUNT","RATE_DAILY","PERIOD"]
[351305558,1738510269207,-500.0,0.00011776,2]
[351305559,1738510269216,-500.0,0.00011776,2]
[351305560,1738510269225,-500.0,0.00011776,2]
[351305561,1738510269234,-647.44,0.00011776,2]
[351305562,1738510269243,-500.0,0.00011776,2]
[351305563,1738510269252,-500.0,0.00011776,2]
[351305564,1738510269261,-500.0,0.00011776,2]
[351305565,1738510269270,-500.0,0.00011776,2]
[351305566,1738510269279,-500.0,0.00011776,2]
[351305567,1738510269288,-289.56181369,0.00011776,2]
[351305568,1738510269297,-500.0,0.00011776,2]
[351305569,1738510269307,-500.0,0.00011776,2]
[351305570,1738510269316,-500.0,0.00011776,2]
[351305571,1738510269324,-500.0,0.00011776,2]
[351305572,1738510269334,-500.0,0.00011776,2]
[351305573,1738510269343,-214.42,0.00011776,2]
[351305574,1738510269351,-500.0,0.00011776,2]
[351305575,1738510269360,-500.0,0.00011776,2]
[351305576,1738510269370,-500.0,0.00011776,2]
[351305577,1738510269379,-500.0,0.00011776,2]
[351305578,1738510269388,-500.0,0.00011776,2]
[351305579,1738510269397,-500.0,0.00011776,2]
[351305580,1738510269406,-500.0,0.00011776,2]
[351305581,1738510269415,-500.0,0.00011776,2]
[351305582,1738510269423,-500.0,0.00011776,2]
[351305583,1738510269432,-583.32,0.00011776,2]
[351305584,1738510269441,-500.0,0.00011776,2]
[351305585,1738510269450,-500.0,0.00011776,2]
[351305586,1738510269459,-500.0,0.00011776,2]
[351305587,1738510269467,-654.03,0.00011776,2]
[351305588,1738510269476,-500.0,0.00011776,2]
[351305589,1738510269485,-1090.95,0.00011776,2]
[351305590,1738510269494,-500.0,0.00011776,2]
[351305591,1738510269503,-1124.91,0.00011776,2]
[351305592,1738510269513,-1284.23,0.00011776,2]
[351305593,1738510269522,-1124.94,0.00011776,2]
[351305594,1738510269531,-761.48,0.00011776,2]
[351305595,1738510269540,-500.0,0.00011776,2]
[351305596,1738510269549,-570.62,0.00011776,2]
[351305597,1738510269558,-500.0,0.00011776,2]
[351305598,1738510269567,-1544.05,0.00011776,2]
[351305599,1738510269576,-754.34,0.00011776,2]
[351305600,1738510269586,-1351.82,0.00011776,2]
[351305601,1738510269595,-500.0,0.00011776,2]
[351305602,1738510269604,-1435.45,0.00011776,2]
[351305603,1738510269613,-521.13,0.00011776,2]
[351305604,1738510269624,-500.0,0.00011776,2]
[351305605,1738510269633,-734.61,0.00011776,2]
[351305606,1738510269642,-500.0,0.00011776,2]
[351305607,1738510269651,-1025.37,0.00011776,2]
[351305608,1738510269660,-500.0,0.00011776,2]
[351305609,1738510269668,-500.0,0.00011776,2]
[351305610,1738510269677,-522.77,0.00011776,2]
[351305611,1738510269686,-676.06,0.00011776,2]
[351305612,1738510269694,-500.0,0.00011776,2]
[351305613,1738510269704,-1146.44,0.00011778,2]
[351305614,1738510269712,-1506.754,0.00011779,2]
[351305615,1738510269721,-155.622,0.00011779,2]
[351305616,1738510269729,-500.0,0.0001178,2]
[351305617,1738510269738,-594.56,0.0001178,2]
[351305618,1738510269747,-500.0,0.0001178,2]
[351305619,1738510269756,-500.0,0.0001178,2]
[351305620,1738510269765,-500.0,0.0001178,2]
[351305621,1738510269774,-281.66,0.0001178,2]
[351305622,1738510269783,-495.30177048,0.00011811,2]
[351305623,1738510269793,-1304.52735436,0.00011812,2]
[351305624,1738510269803,-2371.1166249,0.00011814,2]
[351305625,1738510269813,-340.81436024,0.00011821,2]
[351305626,1738510269822,-534.72222,0.0001188,2]
[351305627,1738510269831,-1304.52735434,0.0001188,2]
[351305628,1738510269840,-167.92444392,0.000119,2]
[351305629,1738510269849,-20148.13622,0.000119,2]
[351305630,1738510269858,-2371.1166249,0.000119,2]
[351305631,1738510269869,-151.82051658,0.000119,2]
[351305632,1738510269878,-1241.88,0.00011904,2]
[351305633,1738510269886,-690.44,0.0001191,2]
[351305634,1738510269895,-500.0,0.00011911,2]
[351305635,1738510269904,-500.0,0.00011911,2]
[351305636,1738510269913,-500.0,0.00011911,2]
[351305637,1738510269922,-500.0,0.00011911,2]
[351305638,1738510269931,-500.0,0.00011911,2]
[351305639,1738510269940,-523.89425038,0.00011911,2]
[351305640,1738510269949,-500.0,0.00011911,2]
[351305641,1738510269958,-637.72,0.00011911,2]
[351305642,1738510269967,-500.0,0.00011911,2]
[351305643,1738510269976,-500.0,0.00011911,2]
[351305644,1738510269985,-500.0,0.00011911,2]
[351305645,1738510269994,-637.36,0.00011911,2]
[351305646,1738510270003,-500.0,0.00011911,2]
[351305647,1738510270012,-500.0,0.00011911,2]
[351305648,1738510270021,-500.0,0.00011911,2]
[351305649,1738510270030,-500.0,0.00011911,2]
[351305650,1738510270039,-500.0,0.00011911,2]
[351305651,1738510270048,-552.35865131,0.00011911,2]
[351305652,1738510270057,-500.0,0.00011911,2]
[351305653,1738510270065,-500.0,0.00011911,2]
[351305654,1738510270074,-242.16,0.00011911,2]
[351305655,1738510270083,-500.0,0.00011911,2]
[351305656,1738510270092,-500.0,0.00011911,2]
[351305657,1738510270100,-500.0,0.00011911,2]
[351305658,1738510270109,-500.0,0.00011911,2]
[351305659,1738510270121,-500.0,0.00011911,2]
[351305660,1738510270131,-511.82735374,0.00011911,2]
[351305661,1738510270141,-500.0,0.00011911,2]
[351305662,1738510270149,-500.0,0.00011911,2]
[351305663,1738510270158,-500.0,0.00011911,2]
[351305664,1738510270167,-500.0,0.00011911,2]
[351305665,1738510270177,-500.0,0.00011911,2]
[351305666,1738510270186,-500.0,0.00011911,2]
[351305667,1738510270195,-500.0,0.00011911,2]
[351305668,1738510270205,-500.0,0.00011911,2]
[351305669,1738510270214,-500.0,0.00011911,2]
[351305670,1738510270223,-500.0,0.00011911,2]
[351305671,1738510270231,-500.0,0.00011911,2]
[351305672,1738510270240,-166.68,0.00011911,2]
[351305673,1738510270249,-500.0,0.00011911,2]
[351305674,1738510270257,-500.0,0.00011911,2]
[351305675,1738510270266,-500.0,0.00011911,2]
[351305676,1738510270275,-618.96,0.00011911,2]
[351305677,1738510270284,-500.0,0.00011911,2]
[351305678,1738510270293,-500.0,0.00011911,2]
[351305679,1738510270304,-500.0,0.00011911,2]
[351305680,1738510270314,-500.0,0.00011911,2]
[351305681,1738510270323,-500.0,0.00011911,2]
[351305682,1738510270331,-500.0,0.00011911,2]
[351305683,1738510270340,-500.0,0.00011911,2]
[351305684,1738510270349,-549.96,0.00011911,2]
[351305685,1738510270358,-500.0,0.00011911,2]
[351305686,1738510270367,-500.0,0.00011911,2]
[351305687,1738510270376,-500.0,0.00011911,2]
[351305688,1738510270385,-500.0,0.00011911,2]
[351305689,1738510270394,-500.0,0.00011911,2]
[351305690,1738510270403,-500.0,0.00011911,2]
[351305691,1738510270412,-500.0,0.00011911,2]
[351305692,1738510270421,-500.0,0.00011911,2]
[351305693,1738510270430,-500.0,0.00011911,2]
[351305694,1738510270438,-500.0,0.00011911,2]
[351305695,1738510270447,-500.0,0.00011911,2]
[351305696,1738510270456,-500.0,0.00011911,2]
[351305697,1738510270465,-500.0,0.00011911,2]
[351305698,1738510270474,-500.0,0.00011911,2]
[351305699,1738510270482,-500.0,0.00011911,2]
[351305700,1738510270492,-551.68,0.00011911,2]
[351305701,1738510270500,-500.0,0.00011911,2]
[351305702,1738510270509,-500.0,0.00011911,2]
[351305703,1738510270524,-500.0,0.00011911,2]
[351305704,1738510270532,-500.0,0.00011911,2]
[351305705,1738510270541,-500.0,0.00011911,2]
[351305706,1738510270550,-166.05704069,0.00011911,2]
[351305707,1738510270559,-500.0,0.00011911,2]
[351305708,1738510270568,-500.0,0.00011911,2]
[351305709,1738510270576,-500.0,0.00011911,2]
[351305710,1738510270585,-451.18178209,0.00011911,2]
[351305711,1738510270594,-500.0,0.00011911,2]
[351305712,1738510270604,-500.0,0.00011911,2]
[351305713,1738510270613,-552.9,0.00011911,2]
[351305714,1738510270627,-423.14731664,0.00011911,2]
[351305715,1738510270636,-500.0,0.00011911,2]
[351305716,1738510270646,-500.0,0.00011911,2]
[351305717,1738510270655,-500.0,0.00011911,2]
[351305718,1738510270664,-500.0,0.00011911,2]
[351305719,1738510270673,-500.0,0.00011911,2]
[351305720,1738510270681,-500.0,0.00011911,2]
[351305721,1738510270690,-500.0,0.00011911,2]
[351305722,1738510270698,-500.0,0.00011911,2]
[351305723,1738510270707,-500.0,0.00011911,2]
[351305724,1738510270716,-500.0,0.00011911,2]
[351305725,1738510270727,-500.0,0.00011911,2]
[351305726,1738510270735,-500.0,0.00011911,2]
[351305727,1738510270744,-500.0,0.00011911,2]
[351305728,1738510270753,-500.0,0.00011911,2]
[351305729,1738510270762,-500.0,0.00011911,2]
[351305730,1738510270771,-500.0,0.00011911,2]
[351305731,1738510270779,-500.0,0.00011911,2]
[351305732,1738510270789,-500.0,0.00011911,2]
[351305733,1738510270798,-500.0,0.00011911,2]
[351305734,1738510270807,-564.55,0.00011911,2]
[351305735,1738510270816,-500.0,0.00011911,2]
[351305736,1738510270824,-500.0,0.00011911,2]
[351305737,1738510270834,-500.0,0.00011911,2]
[351305738,1738510270843,-500.0,0.00011911,2]
[351305739,1738510270852,-500.0,0.00011911,2]
[351305740,1738510270862,-500.0,0.00011911,2]
[351305741,1738510270873,-500.0,0.00011911,2]
[351305742,1738510270882,-2048.75,0.00011911,2]
[351305743,1738510270890,-500.0,0.00011911,2]
[351305744,1738510270897,-1396.7,0.00011911,2]
[351305745,1738510270905,-548.48540258,0.00011911,2]
[351305746,1738510270912,-500.0,0.00011911,2]
[351305747,1738510270920,-500.0,0.00011911,2]
[351305748,1738510270929,-675.91,0.00011911,2]
[351305749,1738510270936,-4002.32,0.00011911,2]
[351305750,1738510270946,-1297.91,0.00011911,2]
[351305751,1738510270953,-500.0,0.00011911,2]
[351305752,1738510270960,-1846.0,0.00011911,2]
[351305753,1738510270967,-2559.72,0.00011911,2]
[351305754,1738510270974,-377.134967,0.00011911,2]
[351305755,1738510270982,-500.0,0.00011911,2]
[351305756,1738510270989,-500.0,0.00011911,2]
[351305757,1738510270995,-841.26,0.00011911,2]
[351305758,1738510271005,-500.0,0.00011911,2]
[351305759,1738510271014,-1076.21,0.00011911,2]
[351305760,1738510271022,-500.0,0.00011911,2]
[351305761,1738510271030,-500.0,0.00011911,2]
[351305762,1738510271037,-686.09,0.00011911,2]
[351305763,1738510271045,-1597.19,0.00011911,2]
[351305764,1738510271054,-500.0,0.00011911,2]
[351305765,1738510271062,-900.73,0.00011911,2]
[351305766,1738510271069,-2086.94,0.00011911,2]
[351305767,1738510271078,-505.01,0.00011911,2]
[351305768,1738510271087,-640.94,0.00011911,2]
[351305769,1738510271094,-500.0,0.00011911,2]
[351305770,1738510271101,-2506.6,0.00011911,2]
[351305771,1738510271109,-2187.32,0.00011911,2]
[351305772,1738510271120,-1548.37,0.00011911,2]
[351305773,1738510271132,-500.0,0.00011911,2]
[351305774,1738510271140,-338.162505,0.00011911,2]
[351305775,1738510271149,-4266.29,0.00011911,2]
[351305776,1738510271157,-500.0,0.00011911,2]
[351305777,1738510271165,-3106.29,0.00011911,2]
[351305778,1738510271175,-500.0,0.00011911,2]
[351305779,1738510271183,-533.9,0.00011911,2]
[351305780,1738510271192,-13382.53,0.00011911,2]
[351305781,1738510271202,-1343.07,0.00011911,2]
[351305782,1738510271209,-656.96,0.00011911,2]
[351305783,1738510271217,-2752.48,0.00011911,2]
[351305784,1738510271226,-3166.54,0.00011911,2]
[351305785,1738510271235,-850.54,0.00011911,2]
[351305786,1738510271245,-1139.77,0.00011911,2]
[351305787,1738510271254,-813.34,0.00011911,2]
[351305788,1738510271261,-500.0,0.00011911,2]
[351305789,1738510271268,-1280.83,0.00011911,2]
[351305790,1738510271276,-3074.31,0.00011911,2]
[351305791,1738510271285,-500.0,0.00011911,2]
[351305792,1738510271294,-1750.5,0.00011911,2]
[351305793,1738510271303,-500.0,0.00011911,2]
[351305794,1738510271311,-5778.75,0.00011911,2]
[351305795,1738510271318,-1240.25,0.00011911,2]
[351305796,1738510271326,-2997.22,0.00011911,2]
[351305797,1738510271334,-739.62,0.00011911,2]
[351305798,1738510271341,-500.0,0.00011911,2]
[351305799,1738510271349,-2332.71,0.00011911,2]
[351305800,1738510271356,-500.0,0.00011911,2]
[351305801,1738510271363,-2707.76,0.00011911,2]
[351305802,1738510271375,-1554.1,0.00011911,2]
[351305803,1738510271384,-1899.66,0.00011911,2]
[351305804,1738510271390,-826.52,0.00011911,2]
[351305805,1738510271399,-500.0,0.00011911,2]
[351305806,1738510271408,-500.0,0.00011911,2]
[351305807,1738510271417,-2118.05,0.00011911,2]
[351305808,1738510271427,-500.0,0.00011911,2]
[351305809,1738510271438,-2208.75,0.00011911,2]
[351305810,1738510271448,-2439.1,0.00011911,2]
[351305811,1738510271458,-4114.56,0.00011911,2]
[351305812,1738510271468,-755.38,0.00011911,2]
[351305813,1738510271478,-3553.22,0.00011911,2]
[351305814,1738510271488,-1319.59,0.00011911,2]
[351305815,1738510271497,-544.85,0.00011911,2]
[351305816,1738510271507,-1180.44,0.00011911,2]
[351305817,1738510271516,-4207.68,0.00011911,2]
[351305818,1738510271526,-1655.7,0.00011911,2]
[351305819,1738510271680,-2413.67,0.00011911,2]
[351305820,1738510271707,-500.0,0.00011911,2]
[351305821,1738510271717,-500.0,0.00011911,2]
[351305822,1738510271728,-500.0,0.00011911,2]
[351305823,1738510271737,-3011.47,0.00011911,2]
[351305824,1738510271748,-1542.52,0.00011911,2]
[351305825,1738510271757,-500.0,0.00011911,2]
[351305826,1738510271768,-158.866969,0.00011911,2]
[351305827,1738510271778,-500.0,0.00011911,2]
[351305828,1738510271788,-1863.02,0.00011911,2]
[351305829,1738510271798,-1595.36,0.00011911,2]
[351305830,1738510271807,-1802.49,0.00011911,2]
[351305831,1738510271816,-500.0,0.00011911,2]
[351305832,1738510271825,-5486.23,0.00011911,2]
[351305833,1738510271835,-500.0,0.00011911,2]
[351305834,1738510271844,-1880.71,0.00011911,2]
[351305835,1738510271853,-1831.67,0.00011911,2]
[351305836,1738510271862,-500.0,0.00011911,2]
[351305837,1738510271874,-500.0,0.00011911,2]
[351305838,1738510271883,-179.527652,0.00011911,2]
[351305839,1738510271891,-1931.66,0.00011911,2]
[351305840,1738510271899,-759.25,0.00011911,2]
[351305841,1738510271907,-737.95,0.00011911,2]
[351305842,1738510271916,-6334.14,0.00011911,2]
[351305843,1738510271925,-500.0,0.00011911,2]
[351305844,1738510271934,-891.34,0.00011911,2]
[351305845,1738510271942,-3262.14,0.00011911,2]
[351305846,1738510271950,-615.17,0.00011911,2]
[351305847,1738510271958,-1265.78,0.00011911,2]
[351305848,1738510271965,-980.33,0.00011911,2]
[351305849,1738510271974,-895.17,0.00011911,2]
[351305850,1738510271982,-500.0,0.00011912,2]
[351305851,1738510271990,-588.28,0.00011912,2]
[351305852,1738510271998,-597.94,0.00011912,2]
[351305853,1738510272007,-500.0,0.00011912,2]
[351305854,1738510272016,-152.88635607,0.00011912,2]
[351305855,1738510272025,-547.06,0.00011912,2]
[351305856,1738510272034,-500.0,0.00011912,2]
[351305857,1738510272043,-635.72,0.00011912,2]
[351305858,1738510272052,-1011.6,0.00011912,2]
[351305859,1738510272061,-500.0,0.00011912,2]
[351305860,1738510272069,-500.0,0.00011912,2]
[351305861,1738510272077,-936.42,0.00011912,2]
[351305862,1738510272084,-500.0,0.00011912,2]
[351305863,1738510272092,-1477.09,0.00011912,2]
[351305864,1738510272100,-500.0,0.00011912,2]
[351305865,1738510272108,-768.84,0.00011912,2]
[351305866,1738510272118,-505.1300128,0.00011912,2]
[351305867,1738510272130,-500.0,0.00011912,2]
[351305868,1738510272138,-500.0,0.00011912,2]
[351305869,1738510272147,-500.0,0.00011912,2]
[351305870,1738510272154,-616.28,0.00011912,2]
[351305871,1738510272163,-500.0,0.00011912,2]
[351305872,1738510272172,-503.63,0.00011912,2]
[351305873,1738510272181,-500.0,0.00011912,2]
[351305874,1738510272188,-500.0,0.00011912,2]
[351305875,1738510272196,-543.3,0.00011912,2]
[351305876,1738510272204,-500.0,0.00011912,2]
[351305877,1738510272215,-903.25,0.00011912,2]
[351305878,1738510272224,-500.0,0.00011912,2]
[351305879,1738510272231,-500.0,0.00011912,2]
[351305880,1738510272240,-500.0,0.00011912,2]
[351305881,1738510272247,-845.35,0.00011912,2]
[351305882,1738510272255,-532.63,0.00011912,2]
[351305883,1738510272262,-500.0,0.00011912,2]
[351305884,1738510272269,-982.31,0.00011912,2]
[351305885,1738510272276,-594.28,0.00011912,2]
[351305886,1738510272283,-574.96,0.00011912,2]
[351305887,1738510272291,-500.0,0.00011912,2]
[351305888,1738510272297,-500.0,0.00011912,2]
[351305889,1738510272306,-500.0,0.00011912,2]
[351305890,1738510272313,-571.57,0.00011912,2]
[351305891,1738510272320,-500.0,0.00011912,2]
[351305892,1738510272327,-500.0,0.00011912,2]
[351305893,1738510272333,-819.67,0.00011912,2]
[351305894,1738510272340,-500.0,0.00011912,2]
[351305895,1738510272347,-661.66,0.00011912,2]
[351305896,1738510272356,-687.53,0.00011912,2]
[351305897,1738510272364,-555.96,0.00011912,2]
[351305898,1738510272375,-594.28,0.00011912,2]
[351305899,1738510272382,-500.0,0.00011912,2]
[351305900,1738510272391,-581.42,0.00011912,2]
[351305901,1738510272399,-844.88,0.00011912,2]
[351305902,1738510272407,-500.0,0.00011912,2]
[351305903,1738510272414,-500.0,0.00011912,2]
[351305904,1738510272421,-500.0,0.00011912,2]
[351305905,1738510272429,-500.0,0.00011912,2]
[351305906,1738510272437,-500.0,0.00011912,2]
[351305907,1738510272446,-500.0,0.00011912,2]
[351305908,1738510272456,-500.0,0.00011912,2]
[351305909,1738510272465,-500.0,0.00011912,2]
[351305910,1738510272472,-500.0,0.00011912,2]
[351305911,1738510272480,-666.12,0.00011912,2]
[351305912,1738510272487,-348.15311318,0.00011912,2]
[351305913,1738510272495,-500.0,0.00011912,2]
[351305914,1738510272504,-500.0,0.00011912,2]
[351305915,1738510272511,-500.0,0.00011912,2]
[351305916,1738510272520,-500.0,0.00011912,2]
[351305917,1738510272528,-500.0,0.00011912,2]
[351305918,1738510272535,-500.0,0.00011912,2]
[351305919,1738510272546,-500.0,0.00011912,2]
[351305920,1738510272554,-831.26,0.00011912,2]
[351305921,1738510272562,-500.0,0.00011912,2]
[351305922,1738510272573,-500.0,0.00011912,2]
[351305923,1738510272584,-545.92,0.00011912,2]
[351305924,1738510272595,-500.0,0.00011912,2]
[351305925,1738510272606,-694.08,0.00011912,2]
[351305926,1738510272620,-500.0,0.00011912,2]
[351305927,1738510272631,-585.25,0.00011912,2]
[351305928,1738510272642,-635.38,0.00011912,2]
[351305929,1738510272652,-500.0,0.00011912,2]
[351305930,1738510272663,-500.0,0.00011912,2]
[351305931,1738510272673,-500.0,0.00011912,2]
[351305932,1738510272684,-833.18,0.00011912,2]
[351305933,1738510272694,-500.0,0.00011912,2]
[351305934,1738510272704,-500.0,0.00011912,2]
[351305935,1738510272714,-500.0,0.00011912,2]
[351305936,1738510272724,-500.0,0.00011912,2]
[351305937,1738510272734,-628.39,0.00011912,2]
[351305938,1738510272744,-979.96,0.00011912,2]
[351305939,1738510272754,-500.26,0.00011912,2]
[351305940,1738510272764,-500.0,0.00011912,2]
[351305941,1738510272774,-909.26,0.00011912,2]
[351305942,1738510272784,-594.94,0.00011912,2]
[351305943,1738510272795,-930.71,0.00011912,2]
[351305944,1738510272804,-500.0,0.00011912,2]
[351305945,1738510272814,-500.0,0.00011912,2]
[351305946,1738510272823,-500.0,0.00011912,2]
[351305947,1738510272834,-608.46,0.00011912,2]
[351305948,1738510272843,-500.0,0.00011912,2]
[351305949,1738510272853,-500.0,0.00011912,2]
[351305950,1738510272863,-500.0,0.00011912,2]
[351305951,1738510272877,-500.0,0.00011912,2]
[351305952,1738510272888,-500.0,0.00011912,2]
[351305953,1738510272898,-1314.91,0.00011912,2]
[351305954,1738510272908,-663.27,0.00011912,2]
[351305955,1738510272918,-685.0,0.00011912,2]
[351305956,1738510272928,-748.7,0.00011912,2]
[351305957,1738510272938,-885.91,0.00011912,2]
[351305958,1738510272948,-500.0,0.00011912,2]
[351305959,1738510272958,-500.0,0.00011912,2]
[351305960,1738510272968,-500.0,0.00011912,2]
[351305961,1738510272978,-500.0,0.00011912,2]
[351305962,1738510272989,-798.84,0.00011912,2]
[351305963,1738510272999,-500.0,0.00011912,2]
[351305964,1738510273009,-2076.9,0.00011912,2]
[351305965,1738510273019,-649.75,0.00011912,2]
[351305966,1738510273029,-856.19,0.00011912,2]
[351305967,1738510273039,-1069.37,0.00011912,2]
[351305968,1738510273049,-2189.05,0.00011912,2]
[351305969,1738510273059,-1210.27,0.00011912,2]
[351305970,1738510273069,-500.0,0.00011912,2]
[351305971,1738510273078,-500.0,0.00011912,2]
[351305972,1738510273088,-1144.75,0.00011912,2]
[351305973,1738510273099,-1154.02,0.00011912,2]
[351305974,1738510273110,-726.06,0.00011912,2]
[351305975,1738510273126,-1379.33,0.00011912,2]
[351305976,1738510273141,-881.31,0.00011912,2]
[351305977,1738510273152,-565.48,0.00011912,2]
[351305978,1738510273162,-888.37,0.00011912,2]
[351305979,1738510273173,-777.35,0.00011912,2]
[351305980,1738510273185,-1523.76,0.00011912,2]
[351305981,1738510273196,-1826.69,0.00011912,2]
[351305982,1738510273207,-720.28,0.00011912,2]
[351305983,1738510273218,-503.43,0.00011912,2]
[351305984,1738510273229,-500.0,0.00011912,2]
[351305985,1738510273240,-500.0,0.00011912,2]
[351305986,1738510273251,-618.0,0.00011912,2]
[351305987,1738510273261,-1146.44,0.00011912,2]
[351305988,1738510273272,-1774.56,0.00011912,2]
[351305989,1738510273282,-500.0,0.00011912,2]
[351305990,1738510273294,-599.85,0.00011912,2]
[351305991,1738510273304,-1649.19,0.00011912,2]
[351305992,1738510273314,-500.0,0.00011912,2]
[351305993,1738510273324,-718.66,0.00011912,2]
[351305994,1738510273334,-724.37,0.00011912,2]
[351305995,1738510273345,-1961.58,0.00011912,2]
[351305996,1738510273355,-502.88,0.00011912,2]
[351305997,1738510273365,-1387.59,0.00011912,2]
[351305998,1738510273380,-1203.75,0.00011912,2]
[351305999,1738510273391,-500.0,0.00011912,2]
[351306000,1738510273401,-765.91,0.00011912,2]
[351306001,1738510273411,-615.89240701,0.00011912,2]
[351306002,1738510273422,-504.48,0.00011912,2]
[351306003,1738510273432,-500.0,0.00011912,2]
[351306004,1738510273442,-500.0,0.00011912,2]
[351306005,1738510273452,-5511.34,0.00011912,2]
[351306006,1738510273462,-597.1,0.00011912,2]
[351306007,1738510273472,-6356.29,0.00011912,2]
[351306008,1738510273482,-1316.04,0.00011912,2]
[351306009,1738510273492,-2359.59,0.00011912,2]
[351306010,1738510273503,-500.0,0.00011912,2]
[351306011,1738510273513,-1273.85,0.00011912,2]
[351306012,1738510273524,-721.96,0.00011912,2]
[351306013,1738510273534,-3564.92,0.00011912,2]
[351306014,1738510273545,-4065.49,0.00011912,2]
[351306015,1738510273554,-1715.07,0.00011912,2]
[351306016,1738510273564,-1170.67,0.00011912,2]
[351306017,1738510273574,-1313.72,0.00011912,2]
[351306018,1738510273584,-955.35,0.00011912,2]
[351306019,1738510273594,-1706.27,0.00011912,2]
[351306020,1738510273604,-822.83,0.00011912,2]
[351306021,1738510273614,-607.06,0.00011912,2]
[351306022,1738510273629,-500.0,0.00011912,2]
[351306023,1738510273639,-3729.61,0.00011912,2]
[351306024,1738510273649,-1246.9,0.00011912,2]
[351306025,1738510273658,-655.12,0.00011912,2]
[351306026,1738510273669,-4100.81,0.00011912,2]
[351306027,1738510273679,-500.0,0.00011912,2]
[351306028,1738510273689,-500.0,0.00011912,2]
[351306029,1738510273700,-500.0,0.00011912,2]
[351306030,1738510273710,-1742.51,0.00011912,2]
[351306031,1738510273720,-834.16,0.00011912,2]
[351306032,1738510273729,-1402.83,0.00011912,2]
[351306033,1738510273739,-660.11,0.00011912,2]
[351306034,1738510273749,-924.02,0.00011912,2]
[351306035,1738510273758,-556.09,0.00011912,2]
[351306036,1738510273768,-1766.28,0.00011912,2]
[351306037,1738510273778,-500.0,0.00011912,2]
[351306038,1738510273789,-1614.2,0.00011912,2]
[351306039,1738510273799,-716.07,0.00011912,2]
[351306040,1738510273810,-1557.23,0.00011912,2]
[351306041,1738510273820,-500.0,0.00011912,2]
[351306042,1738510273830,-1018.9,0.00011912,2]
[351306043,1738510273840,-503.60564284,0.00011913,2]
[351306044,1738510273850,-500.0,0.00011913,2]
[351306045,1738510273861,-500.0,0.00011913,2]
[351306046,1738510273874,-500.0,0.00011913,2]
[351306047,1738510273884,-500.0,0.00011913,2]
[351306048,1738510273894,-500.0,0.00011913,2]
[351306049,1738510273904,-500.0,0.00011913,2]
[351306050,1738510273914,-500.0,0.00011913,2]
[351306051,1738510273924,-228.85,0.00011913,2]
[351306052,1738510273934,-465.04,0.00011913,2]
[351306053,1738510273943,-500.0,0.00011913,2]
[351306054,1738510273953,-500.0,0.00011913,2]
[351306055,1738510273963,-500.0,0.00011913,2]
[351306056,1738510273973,-603.16970082,0.00011913,2]
[351306057,1738510273983,-292.4,0.00011913,2]